bitfinex-derivatives/quotes_BNBF0:USTF0_20241230
["timestamp","ask_amount","ask_price","bid_price","bid_amount"]
[1735573926531,0.26516866,695.36,693.67,1.05806795]
[1735573926733,0.26516866,695.36,693.33,2.79293196]
[1735573926734,1.33376843,695.35,693.81,1.05806795]
[1735573926937,0.26516866,695.34,693.81,1.05806795]
[1735573927134,0.26516866,695.33,693.81,1.05806795]
[1735573927330,0.26516866,695.32,693.81,1.05806795]
[1735573927530,0.26516866,695.31,693.81,1.05806795]
[1735573927736,0.26516866,695.3,693.81,1.05806795]
[1735573927939,0.26516866,695.29,693.81,1.05806795]
[1735573928237,0.26516866,695.28,693.81,1.05806795]
[1735573928437,0.26516866,695.27,693.81,1.05806795]
[1735573928635,0.26516866,695.26,693.81,1.05806795]
[1735573928833,0.28760425,695.4,693.48,1.05806795]
[1735573928834,0.26516866,695.25,693.48,1.05806795]
[1735573929035,0.26516866,695.24,693.48,1.05806795]
[1735573929235,0.26516866,695.23,693.48,1.05806795]
[1735573929434,0.26516866,695.39,693.48,1.05806795]
[1735573929633,0.26516866,695.38,693.48,1.05806795]
[1735573929838,0.26516866,695.37,693.48,1.05806795]
[1735573930035,0.26516866,695.36,693.45,1.05806795]
[1735573930340,0.55279359,695.35,693.45,1.05806795]
[1735573930533,0.28763321,695.33,693.45,1.05806795]
[1735573930732,0.26516866,695.32,693.45,1.05806795]
[1735573930929,0.26516995,695.31,693.45,1.05806795]
[1735573931135,0.26516995,695.3,693.45,1.05806795]
[1735573931339,0.26516995,695.32,693.46,1.05806795]
[1735573931535,0.26513789,695.31,693.46,1.05806795]
[1735573931736,0.26513789,695.3,693.46,1.05806795]
[1735573932038,0.26513789,695.29,693.46,1.05806795]
[1735573932238,0.26513789,695.28,693.46,1.05806795]
[1735573932442,0.26513789,695.27,693.46,1.05806795]
[1735573932638,0.26513789,695.26,693.58,1.05806795]
[1735573932834,0.28763321,695.33,693.58,1.05806795]
[1735573932835,0.26513789,695.25,693.58,1.05806795]
[1735573933134,0.26513789,695.24,693.58,1.05806795]
[1735573933340,0.28763321,695.33,693.58,1.05806795]
[1735573933540,0.26512789,695.32,693.58,1.05806795]
[1735573933835,0.26512789,695.32,693.05,1.05806795]
[1735573933836,0.26512789,695.32,693.85,1.05806795]
[1735573934040,0.26512789,695.31,693.85,1.05806795]
[1735573934241,0.26512789,695.3,693.85,1.05806795]
[1735573934442,0.26512789,695.29,693.85,1.05806795]
[1735573934740,0.26512789,695.28,693.85,1.05806795]
[1735573934947,0.26512789,695.27,693.96,1.05806795]
[1735573935242,0.26512789,695.26,693.96,1.05806795]
[1735573935435,0.26512789,695.25,693.96,1.05806795]
[1735573935640,0.26512789,695.24,693.96,1.05806795]
[1735573935942,0.28763321,695.33,693.94,1.05806795]
[1735573935943,0.2651333,695.23,693.94,1.05806795]
[1735573936143,0.2651333,695.22,693.94,1.05806795]
[1735573936441,0.2651333,695.21,693.94,1.05806795]
[1735573936642,0.2651333,695.2,693.94,1.05806795]
[1735573936843,0.2651333,695.19,693.94,1.05806795]
[1735573937044,0.2651333,695.19,693.41,2.16022206]
[1735573937045,0.2651333,695.18,693.95,1.05806795]
[1735573937338,0.2651333,695.17,693.95,1.05806795]
[1735573937643,0.2651333,695.16,693.95,1.05806795]
[1735573937937,0.2651333,695.15,693.95,1.05806795]
[1735573938145,0.2651333,695.14,694.0,1.05806795]
[1735573938342,0.2651333,695.25,694.0,1.05806795]
[1735573938536,0.2651333,695.24,694.0,1.05806795]
[1735573938746,0.2651333,695.23,694.0,1.05806795]
[1735573938941,0.2651333,695.22,694.0,1.05806795]
[1735573939148,0.28768699,695.2,694.08,1.05806795]
[1735573939336,0.26513628,695.19,694.08,1.05806795]
[1735573939541,0.26513628,695.18,694.08,1.05806795]
[1735573939740,0.28770355,695.16,694.08,1.05806795]
[1735573939943,0.26513628,695.15,694.08,1.05806795]
[1735573940146,0.26513628,695.15,694.05,1.05806795]
[1735573941145,0.28771596,695.13,694.05,1.05806795]
[1735573941345,0.26513414,695.12,693.93,1.05806795]
[1735573941740,0.28771596,695.13,693.93,1.05806795]
[1735573944439,0.28771596,695.13,693.94,1.05806795]
[1735573944645,0.26513151,695.12,693.94,1.05806795]
[1735573945648,0.26513151,695.12,693.82,1.05806795]
[1735573946146,0.26517404,695.11,693.82,1.05806795]
[1735573946341,0.26517404,695.12,693.82,1.05806795]
[1735573946544,0.26517404,695.11,693.82,1.05806795]
[1735573946841,0.26515255,695.1,693.82,1.05806795]
[1735573947145,0.26515255,695.09,693.83,1.05806795]
[1735573947445,0.26515255,695.08,693.83,1.05806795]
[1735573947649,0.26515255,695.07,693.83,1.05806795]
[1735573947940,0.26515255,695.06,693.83,1.05806795]
[1735573948146,0.26515255,695.05,694.13,1.05806795]
[1735573948345,0.26515255,695.04,694.13,1.05806795]
[1735573948641,0.28771596,695.13,694.13,1.05806795]
[1735573949049,0.28771596,695.13,694.14,1.05806795]
[1735573950043,0.28771596,695.13,694.12,1.05806795]
[1735573951244,0.26509969,695.12,694.12,1.05806795]
[1735573951446,0.28771596,695.13,694.06,1.05806795]
[1735573951644,0.2650868,695.12,694.06,1.05806795]
[1735573951845,0.28771596,695.13,694.06,1.05806795]
[1735573952047,0.2650876,695.12,694.06,1.05806795]
[1735573952246,0.28771596,695.13,694.06,1.05806795]
[1735573952548,0.28772424,695.11,694.06,1.05806795]
[1735573953649,0.28772424,695.11,694.05,1.05806795]
[1735573956247,0.28772424,695.11,694.2,1.05806795]
[1735573957449,0.28772424,695.11,694.13,1.05806795]
[1735573958950,0.28772424,695.11,694.15,1.05806795]
[1735573959848,0.28772424,695.11,693.43,2.16022206]
[1735573959849,0.28772424,695.11,694.2,1.05806795]
[1735573960248,1.06859977,696.1,694.2,1.05806795]
[1735573960448,0.28732329,696.08,694.2,1.05806795]
[1735573960644,0.26489205,696.07,694.2,1.05806795]
[1735573960848,0.26486728,696.06,694.2,1.05806795]
[1735573961045,0.26486728,696.05,694.39,1.05806795]
[1735573961249,0.26486728,696.04,694.39,1.05806795]
[1735573961448,0.26486728,696.07,694.39,1.05806795]
[1735573961653,0.26486728,696.06,694.39,1.05806795]
[1735573961846,0.26486728,696.07,694.39,1.05806795]
[1735573962152,0.26486728,696.06,694.39,1.05806795]
[1735573962354,0.28732329,696.08,694.35,1.05806795]
[1735573962355,0.26485589,696.05,694.35,1.05806795]
[1735573962652,0.26485589,696.04,694.35,1.05806795]
[1735573962852,0.26485589,696.03,694.35,1.05806795]
[1735573963051,0.26485589,696.02,694.35,1.05806795]
[1735573963354,0.26485589,696.01,694.35,1.05806795]
[1735573963553,0.26485589,696.0,694.3,1.05806795]
[1735573963756,0.28732329,696.08,694.3,1.05806795]
[1735573963757,0.26485589,695.99,694.3,1.05806795]
[1735573963957,0.26485589,695.98,694.3,1.05806795]
[1735573964161,0.26485589,695.97,694.3,1.05806795]
[1735573964361,0.26485589,696.07,694.22,1.05806795]
[1735573964658,0.26485589,696.06,694.22,1.05806795]
[1735573964858,0.26485589,696.05,694.22,1.05806795]
[1735573965058,0.26485589,696.04,694.22,1.05806795]
[1735573965259,0.26485589,696.03,694.22,1.05806795]
[1735573965458,0.26485589,696.02,694.22,1.05806795]
[1735573965652,0.26485589,696.01,694.22,1.05806795]
[1735573965857,0.26485589,696.0,694.16,1.05806795]
[1735573966161,0.26485589,695.99,694.16,1.05806795]
[1735573966359,0.26485589,695.98,694.16,1.05806795]
[1735573966559,0.26485589,695.97,694.16,1.05806795]
[1735573966861,0.26492248,695.96,694.16,1.05806795]
[1735573967159,0.26492248,695.96,693.47,2.16022206]
[1735573967160,0.26492248,695.95,693.94,1.05806795]
[1735573967358,0.26492248,695.94,693.94,1.05806795]
[1735573967554,0.26492248,695.93,693.94,1.05806795]
[1735573967757,0.28732329,696.08,693.94,1.05806795]
[1735573967758,0.26492248,695.92,693.94,1.05806795]
[1735573967960,0.26492248,695.91,693.94,1.05806795]
[1735573968161,0.26492248,695.9,693.95,1.05806795]
[1735573968354,0.26492248,695.89,693.95,1.05806795]
[1735573968558,0.26492248,695.88,693.95,1.05806795]
[1735573968754,0.26492248,695.87,693.95,1.05806795]
[1735573968955,0.26492248,695.86,693.95,1.05806795]
[1735573969261,0.28732329,696.08,693.97,1.05806795]
[1735573969462,0.2648877,696.07,693.97,1.05806795]
[1735573969961,0.26488596,696.06,693.97,1.05806795]
[1735573970160,0.26488596,696.05,694.02,1.05806795]
[1735573970456,0.26488596,696.04,694.02,1.05806795]
[1735573970661,0.26488596,696.03,694.02,1.05806795]
[1735573970861,0.26488596,696.02,694.02,1.05806795]
[1735573971062,0.26488596,696.01,694.02,1.05806795]
[1735573971262,0.26488596,696.0,694.08,1.05806795]
[1735573971465,0.26488596,695.99,694.08,1.05806795]
[1735573971658,0.26488596,695.98,694.08,1.05806795]
[1735573971862,0.26488596,695.97,694.08,1.05806795]
[1735573972064,0.26490798,695.97,694.08,1.05806795]
[1735573972264,0.26490798,695.96,694.04,1.05806795]
[1735573972461,0.26490798,695.95,694.04,1.05806795]
[1735573972659,0.26490798,695.94,694.04,1.05806795]
[1735573972864,0.26490798,695.93,694.04,1.05806795]
[1735573973064,0.26490798,695.92,694.04,1.05806795]
[1735573973260,0.26490798,695.91,694.04,1.05806795]
[1735573973461,0.26490798,695.9,694.08,1.05806795]
[1735573973665,0.26490798,695.89,694.08,1.05806795]
[1735573973865,0.26490798,695.88,694.08,1.05806795]
[1735573974067,0.26490798,695.87,694.08,1.05806795]
[1735573974266,0.26490798,695.86,694.08,1.05806795]
[1735573974467,0.26490798,695.85,694.08,1.05806795]
[1735573974666,0.26490798,696.07,693.97,1.05806795]
[1735573974864,0.26490798,696.06,693.97,1.05806795]
[1735573975063,0.28732329,696.08,693.97,1.05806795]
[1735573975064,0.26490798,696.05,693.97,1.05806795]
[1735573975259,0.26490798,696.04,694.0,1.05806795]
[1735573975458,0.26490798,696.03,694.0,1.05806795]
[1735573975665,0.28738522,695.93,694.0,1.05806795]
[1735573975866,0.26490798,695.92,694.0,1.05806795]
[1735573976065,0.26490798,695.91,694.0,1.05806795]
[1735573976360,0.28738522,695.93,693.46,1.26968154]
[1735573976361,0.26490798,695.9,694.03,1.05806795]
[1735573976561,0.26490798,695.89,694.03,1.05806795]
[1735573976760,0.28741,695.87,694.03,1.05806795]
[1735573976961,0.26490798,695.86,694.03,1.05806795]
[1735573977164,0.28742239,695.84,694.03,1.05806795]
[1735573977357,0.26491756,695.83,694.03,1.05806795]
[1735573977566,0.28743478,695.81,694.03,1.05806795]
[1735573977866,0.26491756,695.8,694.07,1.05806795]
[1735573979262,0.26491756,695.8,694.16,1.05806795]
[1735573979664,0.26487025,695.79,694.16,1.05806795]
[1735573979866,0.26487025,695.78,694.16,1.05806795]
[1735573980066,0.26487025,695.8,694.16,1.05806795]
[1735573980267,0.26487025,695.79,694.16,1.05806795]
[1735573980468,0.26487025,695.79,694.21,1.05806795]
[1735573980670,0.26487025,695.78,694.21,1.05806795]
[1735573980967,0.26487025,695.77,694.21,1.05806795]
[1735573981168,0.26487025,695.76,694.21,1.05806795]
[1735573981367,0.28743478,695.81,694.21,1.05806795]
[1735573981569,0.2648943,695.8,694.14,1.05806795]
[1735573982565,0.2648943,695.8,694.18,1.05806795]
[1735573984070,0.26488027,695.79,694.18,1.05806795]
[1735573984268,0.26488027,695.78,694.21,1.05806795]
[1735573984466,0.26488027,695.77,694.21,1.05806795]
[1735573984665,0.26488027,695.8,694.21,1.05806795]
[1735573984867,0.26488027,695.79,694.21,1.05806795]
[1735573985071,0.26488027,695.78,694.28,1.05806795]
[1735573985272,0.26488027,695.77,694.28,1.05806795]
[1735573985571,0.26488027,695.76,694.28,1.05806795]
[1735573985766,0.26488027,695.75,694.28,1.05806795]
[1735573985966,0.26488027,695.74,694.28,1.05806795]
[1735573986172,0.26488027,695.73,694.31,1.05806795]
[1735573986372,0.26488027,695.72,694.31,1.05806795]
[1735573986567,0.26488027,695.71,694.31,1.05806795]
[1735573986766,0.26487897,695.7,694.31,1.05806795]
[1735573986970,0.26487897,695.69,694.31,1.05806795]
[1735573987272,0.26487897,695.69,693.5,2.16022206]
[1735573987273,0.26487897,695.68,694.42,1.05806795]
[1735573987476,0.26487897,695.67,694.42,1.05806795]
[1735573987676,0.28743478,695.81,694.42,1.05806795]
[1735573987677,0.26487897,695.8,694.42,1.05806795]
[1735573987974,0.26487897,695.79,694.42,1.05806795]
[1735573988273,0.26487897,695.78,694.42,1.05806795]
[1735573988472,0.26487897,695.77,694.42,1.05806795]
[1735573988675,0.26487897,695.76,694.49,1.05806795]
[1735573988973,0.26487897,695.75,694.49,1.05806795]
[1735573989177,0.26487897,695.8,694.49,1.05806795]
[1735573989372,0.26487897,695.79,694.49,1.05806795]
[1735573989569,0.26487897,695.78,694.49,1.05806795]
[1735573989775,0.26487897,695.77,694.51,1.05806795]
[1735573989975,0.26487897,695.76,694.51,1.05806795]
[1735573990270,0.26487897,695.75,694.51,1.05806795]
[1735573990471,0.26487897,695.74,694.51,1.05806795]
[1735573990676,0.26487897,695.73,694.48,1.05806795]
[1735573990876,0.26487897,695.72,694.48,1.05806795]
[1735573991175,0.26487897,695.71,694.48,1.05806795]
[1735573991376,0.26487897,695.7,694.48,1.05806795]
[1735573991576,0.26487897,695.69,694.48,1.05806795]
[1735573991776,0.26487897,695.8,694.48,1.05806795]
[1735573991980,0.2649362,695.79,694.5,1.05806795]
[1735573992178,0.2649362,695.78,694.5,1.05806795]
[1735573992377,0.2649362,695.77,694.5,1.05806795]
[1735573992574,0.2649379,695.76,694.5,1.05806795]
[1735573992777,0.2649379,695.8,694.5,1.05806795]
[1735573992979,0.2649379,695.79,694.52,1.05806795]
[1735573993179,0.2649379,695.78,694.52,1.05806795]
[1735573993380,0.2649379,695.77,694.52,1.05806795]
[1735573993679,0.2649379,695.76,694.52,1.05806795]
[1735573993981,0.2649379,695.75,694.45,1.05806795]
[1735573994281,0.2649379,695.74,694.45,1.05806795]
[1735573994583,0.26499735,695.73,694.45,1.05806795]
[1735573994775,0.26499735,695.72,694.45,1.05806795]
[1735573994977,0.26499735,695.71,694.45,1.05806795]
[1735573995180,0.26499735,695.7,694.42,1.05806795]
[1735573995477,0.26499735,695.69,694.42,1.05806795]
[1735573995679,0.26499735,695.68,694.42,1.05806795]
[1735573995879,0.26499735,695.67,694.42,1.05806795]
[1735573996075,0.26499735,695.66,694.42,1.05806795]
[1735573996278,0.26499735,695.65,694.42,1.05806795]
[1735573996478,0.28743478,695.81,694.29,1.05806795]
[1735573996479,0.26499735,695.64,694.29,1.05806795]
[1735573996679,0.26499735,695.63,694.29,1.05806795]
[1735573996880,0.26499735,695.62,694.29,1.05806795]
[1735573997081,1.06859977,695.76,694.29,1.05806795]
[1735573997277,0.26503553,695.75,694.29,1.05806795]
[1735573997481,0.26503553,695.74,694.2,1.05806795]
[1735573997781,0.26503553,695.73,694.2,1.05806795]
[1735573997982,0.26503553,695.72,694.2,1.05806795]
[1735573998182,0.26503553,695.71,694.2,1.05806795]
[1735573998484,0.26503553,695.7,694.16,1.05806795]
[1735573998783,0.26503553,695.69,694.16,1.05806795]
[1735573998980,0.26503553,695.68,694.16,1.05806795]
[1735573999182,0.26503553,695.67,694.16,1.05806795]
[1735573999383,0.26503553,695.66,694.14,1.05806795]
[1735573999581,0.26503553,695.65,694.14,1.05806795]
[1735573999783,0.26502578,695.64,694.14,1.05806795]
[1735574000084,0.26502578,695.63,694.14,1.05806795]
[1735574000383,0.26502578,695.62,694.14,1.05806795]
[1735574000583,0.28743478,695.81,694.1,1.05806795]
[1735574000584,0.26502578,695.61,694.1,1.05806795]
[1735574000784,0.26502578,695.6,694.1,1.05806795]
[1735574000984,0.26502578,695.59,694.1,1.05806795]
[1735574001283,0.26502578,695.58,694.1,1.05806795]
[1735574001478,0.26502578,695.57,694.1,1.05806795]
[1735574001684,0.26502578,695.57,693.84,1.05806795]
[1735574001685,0.26502578,695.56,694.11,1.05806795]
[1735574001881,0.26502578,695.55,694.11,1.05806795]
[1735574002185,0.26502578,695.54,694.11,1.05806795]
[1735574002485,0.26502243,695.53,694.11,1.05806795]
[1735574002677,0.26502243,695.52,694.11,1.05806795]
[1735574002880,0.26502243,695.51,694.11,1.05806795]
[1735574003077,0.26502243,695.5,694.07,1.05806795]
[1735574003276,0.26502243,695.49,694.07,1.05806795]
[1735574003478,0.26502243,695.48,694.07,1.05806795]
[1735574003677,0.26502243,695.47,694.07,1.05806795]
[1735574003882,0.26502243,695.46,694.07,1.05806795]
[1735574004083,0.26502243,695.45,694.08,1.05806795]
[1735574004281,0.28759184,695.43,694.08,1.05806795]
[1735574004584,0.26502243,695.42,694.08,1.05806795]
[1735574004885,0.28760425,695.4,694.08,1.05806795]
[1735574005184,0.26503208,695.39,693.93,1.05806795]
[1735574006085,0.28761666,695.37,693.93,1.05806795]
[1735574006283,0.28761666,695.37,693.94,1.05806795]
[1735574007286,0.26505325,695.36,693.94,1.05806795]
[1735574007592,0.26505588,695.35,693.94,1.05806795]
[1735574007784,0.26505588,695.34,693.94,1.05806795]
[1735574007981,0.28761666,695.37,693.94,1.05806795]
[1735574008180,0.2650471,695.36,693.94,1.05806795]
[1735574008888,0.2650471,695.36,693.84,1.05806795]
[1735574010082,0.26510616,695.35,693.72,1.05806795]
[1735574010284,0.28763321,695.33,693.72,1.05806795]
[1735574010485,0.26510616,695.32,693.72,1.05806795]
[1735574010988,0.28764562,695.3,693.72,1.05806795]
[1735574011285,0.26510616,695.29,693.72,1.05806795]
[1735574011486,0.26510616,695.29,693.64,1.05806795]
[1735574012089,0.28765803,695.27,693.64,1.05806795]
[1735574012387,0.26510616,695.26,693.64,1.05806795]
[1735574012582,0.28767044,695.24,693.57,1.05806795]
[1735574012786,0.2651065,695.23,693.57,1.05806795]
[1735574013087,0.28768285,695.21,693.57,1.05806795]
[1735574013387,0.2651065,695.2,693.57,1.05806795]
[1735574013988,0.28769527,695.18,693.74,1.05806795]
[1735574014183,0.2651065,695.17,693.74,1.05806795]
[1735574014384,0.28769527,695.18,693.74,1.05806795]
[1735574015091,0.28769527,695.18,693.51,1.05806795]
[1735574016091,0.28769527,695.18,693.61,1.05806795]
[1735574017192,0.28769527,695.18,693.69,1.05806795]
[1735574018592,0.28769527,695.18,694.1,1.05806795]
[1735574019697,0.28769527,695.18,694.13,1.05806795]
[1735574020790,0.28769527,695.18,694.17,1.05806795]
[1735574021895,0.28769527,695.18,694.24,1.05806795]
[1735574022691,0.28769527,695.18,694.33,1.05806795]
[1735574023897,0.28769527,695.18,694.34,1.05806795]
[1735574024600,0.28769527,695.18,694.36,1.05806795]
[1735574025398,0.28769527,695.18,694.29,1.05806795]
[1735574026797,0.28769527,695.18,694.33,1.05806795]
[1735574028000,0.28769527,695.18,694.31,1.05806795]
[1735574029093,0.28769527,695.18,694.3,1.05806795]
[1735574030196,0.28769527,695.18,693.71,2.16022206]
[1735574030197,0.28769527,695.18,694.28,1.05806795]
[1735574032601,0.28769527,695.18,694.25,1.05806795]
[1735574033496,0.28769527,695.18,694.23,1.05806795]
[1735574034603,0.28769527,695.18,694.24,1.05806795]
[1735574035401,0.28769527,695.18,694.26,1.05806795]
[1735574036701,0.28769527,695.18,694.24,1.05806795]
[1735574037504,0.28769527,695.18,694.21,1.05806795]
[1735574038601,0.28769527,695.18,694.23,1.05806795]
[1735574039606,0.28769527,695.18,694.19,1.05806795]
[1735574040706,0.28769527,695.18,694.15,1.05806795]
[1735574041610,0.28769527,695.18,694.1,1.05806795]
[1735574042400,0.28769527,695.18,694.11,1.05806795]
[1735574043507,0.28769527,695.18,693.97,1.05806795]
[1735574044410,0.28769527,695.18,693.96,1.05806795]
[1735574045709,0.28769527,695.18,693.29,2.16022206]
[1735574045710,0.28769527,695.18,694.01,1.05806795]
[1735574046813,0.28769527,695.18,693.34,2.16022206]
[1735574046814,0.28769527,695.18,694.15,1.05806795]
[1735574048413,0.28769527,695.18,694.26,1.05806795]
[1735574050612,0.28769527,695.18,694.3,1.05806795]
[1735574052208,0.28769527,695.18,694.34,1.05806795]
[1735574053313,0.28769527,695.18,694.38,1.05806795]
[1735574054616,0.28769527,695.18,694.43,1.05806795]
[1735574055708,0.28769527,695.18,694.42,1.05806795]
[1735574059616,0.28769527,695.18,694.48,1.05806795]
[1735574060818,0.28769527,695.18,694.34,1.05806795]
[1735574062315,0.28769527,695.18,693.57,2.16022206]
[1735574062316,0.28769527,695.18,694.29,1.05806795]
[1735574063317,0.28769527,695.18,693.53,2.16022206]
[1735574063318,0.28769527,695.18,694.27,1.05806795]
[1735574064623,0.28769527,695.18,694.25,1.05806795]
[1735574065823,0.26506414,695.17,694.25,1.05806795]
[1735574066024,0.26506414,695.17,694.21,1.05806795]
[1735574066521,0.28769527,695.18,694.21,1.05806795]
[1735574066723,0.2650648,695.17,694.21,1.05806795]
[1735574066924,0.28769527,695.18,694.21,1.05806795]
[1735574067217,0.28769527,695.18,694.04,1.05806795]
[1735574068220,0.28769527,695.18,694.09,1.05806795]
[1735574069420,0.26505218,695.17,694.09,1.05806795]
[1735574069624,0.28769527,695.18,694.1,1.05806795]
[1735574070227,0.28769527,695.18,694.08,1.05806795]
[1735574070923,0.26503769,695.17,694.08,1.05806795]
[1735574071224,0.55274833,695.16,694.08,1.05806795]
[1735574071532,0.55275246,695.15,694.11,1.05806795]
[1735574071726,0.28770768,695.15,694.11,1.05806795]
[1735574072829,0.28770768,695.15,694.09,1.05806795]
[1735574073623,0.28770768,695.15,694.1,1.05806795]
[1735574074433,0.28770768,695.15,694.09,1.05806795]
[1735574075426,0.28770768,695.15,693.44,1.05806795]
[1735574077030,0.28770768,695.15,693.51,1.05806795]
[1735574078533,0.28770768,695.15,694.1,1.05806795]
[1735574079537,0.28770768,695.15,694.23,1.05806795]
[1735574082036,0.28770768,695.15,694.2,1.05806795]
[1735574083444,0.28770768,695.15,694.08,1.05806795]
[1735574084440,0.28770768,695.15,694.07,1.05806795]
[1735574087350,0.28770768,695.15,694.12,1.05806795]
[1735574088450,0.28770768,695.15,694.14,1.05806795]
[1735574088853,0.28770768,695.15,685.6,0.5293333]
[1735574089053,0.28770768,695.15,691.83,2.89398655]
[1735574089250,0.28770768,695.15,691.84,5.68120679]
[1735574089449,0.28770768,695.15,691.85,2.89398655]
[1735574089655,0.28770768,695.15,694.2,1.069472]
[1735574090655,0.28770768,695.15,694.19,1.069472]
[1735574091850,0.28770768,695.15,694.24,1.069472]
[1735574092859,0.28770768,695.15,694.29,1.069472]
[1735574094058,0.28770768,695.15,694.32,1.069472]
[1735574095056,0.28770768,695.15,694.3,1.069472]
[1735574096259,0.28770768,695.15,694.31,1.069472]
[1735574097460,0.28770768,695.15,694.33,1.069472]
[1735574099760,0.28770768,695.15,694.38,1.069472]
[1735574100858,0.28770768,695.15,694.23,1.069472]
[1735574102066,0.28770768,695.15,694.07,1.069472]
[1735574103567,0.28770768,695.15,694.14,1.069472]
[1735574104768,0.28770768,695.15,694.0,1.069472]
[1735574106567,0.28770768,695.15,694.02,1.069472]
[1735574107668,0.28770768,695.15,693.96,1.069472]
[1735574108669,0.28770768,695.15,694.0,1.069472]
[1735574109870,0.28770768,695.15,693.99,1.069472]
[1735574110966,0.28770768,695.15,693.98,1.069472]
[1735574111961,0.28770768,695.15,693.16,2.18350534]
[1735574111962,0.28770768,695.15,694.1,1.069472]
[1735574113770,0.26506665,695.14,694.1,1.069472]
[1735574113967,0.28771596,695.13,694.1,1.069472]
[1735574114171,0.28771596,695.13,694.07,1.069472]
[1735574114672,0.2650699,695.12,694.07,1.069472]
[1735574114973,0.26506918,695.11,694.07,1.069472]
[1735574115176,0.26506918,695.11,693.43,2.18350534]
[1735574115177,0.26506918,695.1,694.09,1.069472]
[1735574115366,0.26506918,695.12,694.09,1.069472]
[1735574115566,0.26506918,695.11,694.09,1.069472]
[1735574115773,0.26506918,695.1,694.09,1.069472]
[1735574115973,0.55281374,695.09,694.09,1.069472]
[1735574116175,0.26508122,695.08,694.11,1.069472]
[1735574116569,0.2877408,695.07,694.11,1.069472]
[1735574117367,0.2877408,695.07,694.13,1.069472]
[1735574118779,0.2877408,695.07,694.22,1.069472]
[1735574120281,0.2877408,695.07,694.25,1.069472]
[1735574121078,0.2877408,695.07,694.3,1.069472]
[1735574122481,0.2877408,695.07,694.29,1.069472]
[1735574123576,0.2877408,695.07,694.3,1.069472]
[1735574124683,0.2877408,695.07,694.32,1.069472]
[1735574125483,0.2877408,695.07,694.33,1.069472]
[1735574126282,0.2877408,695.07,694.31,1.069472]
[1735574126984,0.2877408,695.07,694.33,1.069472]
[1735574128279,0.2877408,695.07,694.28,1.069472]
[1735574129383,0.2877408,695.07,694.23,1.069472]
[1735574131787,0.2877408,695.07,694.22,1.069472]
[1735574132685,1.07580052,696.22,694.28,1.069472]
[1735574132886,0.28727377,696.2,694.28,1.069472]
[1735574133085,0.26489654,696.19,694.28,1.069472]
[1735574133286,0.26489654,696.19,686.31,13.6866477]
[1735574133488,0.26489654,696.19,692.51,2.89125317]
[1735574133686,0.26489654,696.19,692.52,1.35609958]
[1735574133984,0.26489654,696.19,692.52,5.67461938]
[1735574134186,0.26489654,696.19,692.53,2.89125317]
[1735574134384,0.26489654,696.19,692.54,1.35609958]
[1735574134581,0.26489654,696.19,692.54,2.89125317]
[1735574134781,0.26489654,696.19,692.55,4.13946579]
[1735574134984,0.26489654,696.19,694.32,1.06680473]
[1735574136088,0.26489654,696.18,694.32,1.06680473]
[1735574136288,0.26489654,696.18,693.79,5.66566905]
[1735574136289,0.26489883,696.17,694.27,1.06680473]
[1735574136587,0.28727377,696.2,694.27,1.06680473]
[1735574136588,0.26489883,696.16,694.27,1.06680473]
[1735574136784,0.26489883,696.15,694.27,1.06680473]
[1735574136987,0.26489883,696.14,694.27,1.06680473]
[1735574137292,0.26489883,696.13,694.26,1.06680473]
[1735574137482,0.26489883,696.12,694.26,1.06680473]
[1735574137684,0.26489883,696.11,694.26,1.06680473]
[1735574137880,0.26489883,696.1,694.26,1.06680473]
[1735574138089,0.26489883,696.09,694.22,1.06680473]
[1735574138281,0.26489883,696.08,694.22,1.06680473]
[1735574138487,0.26489883,696.07,694.22,1.06680473]
[1735574138787,0.26493488,696.06,694.22,1.06680473]
[1735574138990,0.26493488,696.05,694.22,1.06680473]
[1735574139188,0.28727377,696.2,694.25,1.06680473]
[1735574139189,1.07457288,696.19,694.25,1.06680473]
[1735574139688,0.20458088,696.29,694.25,1.06680473]
[1735574140590,1.28948746,698.57,695.22,1.06680473]
[1735574140790,0.28636474,698.41,695.22,1.06680473]
[1735574140988,0.26442662,698.4,695.22,1.06680473]
[1735574141188,0.26442662,698.39,695.22,1.06680473]
[1735574141488,0.26442526,698.38,695.22,1.06680473]
[1735574141684,0.26442526,698.37,695.22,1.06680473]
[1735574141890,0.26442526,698.36,694.77,1.06680473]
[1735574142190,0.26442526,698.35,694.77,1.06680473]
[1735574142389,0.28645907,698.18,694.79,0.28785676]
[1735574142588,0.26442526,698.17,694.79,0.28785676]
[1735574142784,0.26442526,698.16,694.79,0.28785676]
[1735574142989,0.26442526,698.15,694.79,0.28785676]
[1735574143188,0.26442526,698.14,694.79,0.28785676]
[1735574143388,0.63456488,698.8,694.79,0.28785676]
[1735574143389,0.28654116,697.98,694.79,0.28785676]
[1735574143586,0.26442526,697.97,694.79,0.28785676]
[1735574143790,0.26442526,697.96,694.79,0.28785676]
[1735574143991,0.28660686,697.82,694.79,0.28785676]
[1735574144189,0.26441629,697.81,694.79,0.28785676]
[1735574144388,0.28667259,697.66,694.79,0.28785676]
[1735574144590,0.26441786,697.65,694.79,0.28785676]
[1735574144885,0.28673424,697.51,694.79,0.28785676]
[1735574145090,0.26441786,697.5,694.79,0.28785676]